[Event "Titled Tuesday Blitz December 20 Late 2022"]
[White "Gonzalez, Francisco Silva"]
[Black "Torres Dominguez, David"]
[WhiteFideId "1512285"]
[BlackFideId "2220857"]
[WhiteElo "2220"]
[BlackElo "2037"]
[Result "1-0"]
[Round "11"]
[TimeControl "180+1"]
[Date "2022.12.21"]
[WhiteClock "0:01:30"]
[BlackClock "0:00:01"]

1. d4 {[%clk 0:03:00]}  e5 {[%clk 0:02:58]} 2. dxe5 {[%clk 0:02:59]}  d6 {[%clk 0:02:58]} 3. Nf3 {[%clk 0:02:58]}  Bg4 {[%clk 0:02:58]} 4. Bg5 {[%clk 0:02:56]}  Qd7 {[%clk 0:02:58]} 5. Nbd2 {[%clk 0:02:54]}  Nc6 {[%clk 0:02:58]} 6. exd6 {[%clk 0:02:53]}  Bxd6 {[%clk 0:02:57]} 7. h3 {[%clk 0:02:53]}  Bh5 {[%clk 0:02:56]} 8. Ne4 {[%clk 0:02:52]}  Bb4+ {[%clk 0:02:50]} 9. c3 {[%clk 0:02:52]}  Qxd1+ {[%clk 0:02:49]} 10. Rxd1 {[%clk 0:02:51]}  Ba5 {[%clk 0:02:37]} 11. Nc5 {[%clk 0:02:50]}  Bb6 {[%clk 0:02:24]} 12. Nd7 {[%clk 0:02:42]}  f6 {[%clk 0:02:20]} 13. Bf4 {[%clk 0:02:35]}  O-O-O {[%clk 0:01:56]} 14. Nxb6+ {[%clk 0:02:34]}  axb6 {[%clk 0:01:55]} 15. Rxd8+ {[%clk 0:02:31]}  Nxd8 {[%clk 0:01:56]} 16. e3 {[%clk 0:02:31]}  Ne6 {[%clk 0:01:55]} 17. Bh2 {[%clk 0:02:29]}  Ne7 {[%clk 0:01:39]} 18. Nd4 {[%clk 0:02:22]}  Nc5 {[%clk 0:01:33]} 19. Bc4 {[%clk 0:02:21]}  Na4 {[%clk 0:01:25]} 20. Be6+ {[%clk 0:02:11]}  Kb8 {[%clk 0:00:42]} 21. Nb5 {[%clk 0:02:11]}  Nxb2 {[%clk 0:00:41]} 22. Bxc7+ {[%clk 0:02:07]}  Ka8 {[%clk 0:00:39]} 23. Bxb6 {[%clk 0:01:55]}  Nd3+ {[%clk 0:00:30]} 24. Kf1 {[%clk 0:01:54]}  Ne5 {[%clk 0:00:22]} 25. f3 {[%clk 0:01:50]}  Bf7 {[%clk 0:00:17]} 26. Ke2 {[%clk 0:01:41]}  Bxe6 {[%clk 0:00:16]} 27. Nc7+ {[%clk 0:01:41]}  Kb8 {[%clk 0:00:16]} 28. Nxe6 {[%clk 0:01:41]}  Rc8 {[%clk 0:00:14]} 29. Bd4 {[%clk 0:01:39]}  g6 {[%clk 0:00:12]} 30. Rb1 {[%clk 0:01:36]}  N7c6 {[%clk 0:00:11]} 31. Nc5 {[%clk 0:01:33]}  Nxd4+ {[%clk 0:00:08]} 32. cxd4 {[%clk 0:01:32]}  Nc4 {[%clk 0:00:02]} 33. Rxb7+ {[%clk 0:01:30]}  Ka8 {[%clk 0:00:01]} 34. Rb4 {[%clk 0:01:30]} 1-0


[Site "https://www.chess.com"]

[Event "Titled Tuesday Blitz December 20 Late 2022"]
[White "Goroshkov, Maksym"]
[Black "Vega Gutierrez, Sabrina"]
[WhiteFideId "14142716"]
[BlackFideId "2219026"]
[WhiteElo "2258"]
[BlackElo "2261"]
[Result "1-0"]
[Round "11"]
[TimeControl "180+1"]
[Date "2022.12.20"]
[WhiteClock "0:00:31"]
[BlackClock "0:00:01"]

1. e4 {[%clk 0:02:59]}  c5 {[%clk 0:02:59]} 2. d4 {[%clk 0:02:58]}  cxd4 {[%clk 0:02:59]} 3. c3 {[%clk 0:02:58]}  Nf6 {[%clk 0:02:56]} 4. e5 {[%clk 0:02:58]}  Nd5 {[%clk 0:02:57]} 5. Bc4 {[%clk 0:02:58]}  e6 {[%clk 0:02:53]} 6. cxd4 {[%clk 0:02:57]}  d6 {[%clk 0:02:51]} 7. exd6 {[%clk 0:02:57]}  Bxd6 {[%clk 0:02:49]} 8. Nf3 {[%clk 0:02:58]}  O-O {[%clk 0:02:48]} 9. O-O {[%clk 0:02:57]}  b6 {[%clk 0:02:38]} 10. Nc3 {[%clk 0:02:48]}  Nxc3 {[%clk 0:02:37]} 11. bxc3 {[%clk 0:02:46]}  Ba6 {[%clk 0:02:34]} 12. Bxa6 {[%clk 0:02:40]}  Nxa6 {[%clk 0:02:35]} 13. Ng5 {[%clk 0:02:40]}  Be7 {[%clk 0:02:22]} 14. Nxh7 {[%clk 0:02:34]}  Kxh7 {[%clk 0:02:01]} 15. Qd3+ {[%clk 0:02:34]}  Kg8 {[%clk 0:02:01]} 16. Qxa6 {[%clk 0:02:34]}  Qc7 {[%clk 0:01:53]} 17. Qd3 {[%clk 0:02:33]}  Rac8 {[%clk 0:01:53]} 18. Bd2 {[%clk 0:02:31]}  Qc4 {[%clk 0:01:47]} 19. Qxc4 {[%clk 0:02:23]}  Rxc4 {[%clk 0:01:48]} 20. Rfc1 {[%clk 0:02:21]}  Ba3 {[%clk 0:01:44]} 21. Rcb1 {[%clk 0:02:17]}  Rd8 {[%clk 0:01:40]} 22. Kf1 {[%clk 0:02:16]}  Rd5 {[%clk 0:01:07]} 23. Ke2 {[%clk 0:02:09]}  b5 {[%clk 0:00:58]} 24. Rb3 {[%clk 0:01:57]}  Ra4 {[%clk 0:00:57]} 25. Rab1 {[%clk 0:01:41]}  a6 {[%clk 0:00:57]} 26. Kd3 {[%clk 0:01:35]}  f6 {[%clk 0:00:42]} 27. f4 {[%clk 0:01:29]}  Kf7 {[%clk 0:00:42]} 28. Be3 {[%clk 0:01:22]}  Ke7 {[%clk 0:00:22]} 29. g4 {[%clk 0:01:16]}  Kd7 {[%clk 0:00:22]} 30. h4 {[%clk 0:01:16]}  Ke7 {[%clk 0:00:22]} 31. h5 {[%clk 0:01:10]}  Kf7 {[%clk 0:00:22]} 32. Rg1 {[%clk 0:01:07]}  Bd6 {[%clk 0:00:15]} 33. Rg2 {[%clk 0:01:06]}  Be7 {[%clk 0:00:09]} 34. Rh2 {[%clk 0:01:05]}  Bf8 {[%clk 0:00:09]} 35. g5 {[%clk 0:00:54]}  Kg8 {[%clk 0:00:03]} 36. gxf6 {[%clk 0:00:44]}  gxf6 {[%clk 0:00:03]} 37. Rbb2 {[%clk 0:00:42]}  Rd7 {[%clk 0:00:02]} 38. Rbg2+ {[%clk 0:00:37]}  Rg7 {[%clk 0:00:02]} 39. f5 {[%clk 0:00:29]}  exf5 {[%clk 0:00:02]} 40. Bh6 {[%clk 0:00:28]}  Rxg2 {[%clk 0:00:01]} 41. Rxg2+ {[%clk 0:00:29]}  Kf7 {[%clk 0:00:01]} 42. Bxf8 {[%clk 0:00:30]}  Kxf8 {[%clk 0:00:01]} 43. h6 {[%clk 0:00:31]} 1-0


[Site "https://www.chess.com"]

[Event "Titled Tuesday Blitz December 20 Late 2022"]
[White "Gubajdullin, Alexei"]
[Black "Przybylski, Wojciech"]
[WhiteFideId "4141202"]
[BlackFideId "1117599"]
[WhiteElo "2251"]
[BlackElo "2217"]
[Result "1-0"]
[Round "11"]
[TimeControl "180+1"]
[Date "2022.12.20"]
[WhiteClock "0:01:37"]
[BlackClock "0:02:03"]

1. d4 {[%clk 0:02:58]}  Nf6 {[%clk 0:02:59]} 2. Nf3 {[%clk 0:02:58]}  e6 {[%clk 0:02:58]} 3. Bf4 {[%clk 0:02:56]}  d5 {[%clk 0:02:57]} 4. e3 {[%clk 0:02:55]}  Bd6 {[%clk 0:02:56]} 5. Bg3 {[%clk 0:02:51]}  O-O {[%clk 0:02:56]} 6. Nbd2 {[%clk 0:02:51]}  b6 {[%clk 0:02:53]} 7. Ne5 {[%clk 0:02:42]}  Bb7 {[%clk 0:02:52]} 8. f4 {[%clk 0:02:38]}  Ne4 {[%clk 0:02:52]} 9. Nxe4 {[%clk 0:02:37]}  dxe4 {[%clk 0:02:52]} 10. Qh5 {[%clk 0:02:29]}  f6 {[%clk 0:02:47]} 11. Bc4 {[%clk 0:02:14]}  Qe7 {[%clk 0:02:43]} 12. f5 {[%clk 0:02:03]}  Bd5 {[%clk 0:02:31]} 13. Bxd5 {[%clk 0:01:59]}  exd5 {[%clk 0:02:32]} 14. Ng6 {[%clk 0:01:57]}  Qf7 {[%clk 0:02:17]} 15. Bxd6 {[%clk 0:01:56]}  cxd6 {[%clk 0:02:17]} 16. O-O {[%clk 0:01:44]}  Rc8 {[%clk 0:02:10]} 17. Rf4 {[%clk 0:01:38]}  Nc6 {[%clk 0:02:03]} 18. Qxh7+ {[%clk 0:01:37]} 1-0


[Site "https://www.chess.com"]

[Event "Titled Tuesday Blitz December 20 Late 2022"]
[White "Hambleton, Aman"]
[Black "Izeta Txabarri, Felix"]
[WhiteFideId "2606577"]
[BlackFideId "2200260"]
[WhiteElo "2538"]
[BlackElo "2474"]
[Result "1-0"]
[Round "11"]
[TimeControl "180+1"]
[Date "2022.12.21"]
[WhiteClock "0:00:02"]
[BlackClock "0:00:02"]

1. d4 {[%clk 0:03:00]}  Nf6 {[%clk 0:02:59]} 2. Be3 {[%clk 0:02:59]}  d5 {[%clk 0:02:51]} 3. Nf3 {[%clk 0:02:59]}  Bf5 {[%clk 0:02:48]} 4. g3 {[%clk 0:02:59]}  e6 {[%clk 0:02:45]} 5. Bg2 {[%clk 0:02:59]}  Be7 {[%clk 0:02:39]} 6. c3 {[%clk 0:03:00]}  O-O {[%clk 0:02:39]} 7. O-O {[%clk 0:03:01]}  Nbd7 {[%clk 0:02:37]} 8. Nbd2 {[%clk 0:03:01]}  c5 {[%clk 0:02:37]} 9. Bg5 {[%clk 0:02:59]}  h6 {[%clk 0:02:35]} 10. Bxf6 {[%clk 0:02:58]}  Nxf6 {[%clk 0:02:35]} 11. a3 {[%clk 0:02:58]}  Rc8 {[%clk 0:02:32]} 12. Rc1 {[%clk 0:02:56]}  Qb6 {[%clk 0:02:30]} 13. b4 {[%clk 0:02:54]}  cxd4 {[%clk 0:02:17]} 14. cxd4 {[%clk 0:02:55]}  Ne4 {[%clk 0:02:14]} 15. Nxe4 {[%clk 0:02:52]}  Bxe4 {[%clk 0:02:13]} 16. Qd2 {[%clk 0:02:50]}  Rc4 {[%clk 0:02:05]} 17. Ne5 {[%clk 0:02:11]}  Rxd4 {[%clk 0:01:16]} 18. Qc3 {[%clk 0:00:46]}  Bxg2 {[%clk 0:01:01]} 19. Kxg2 {[%clk 0:00:17]}  Rd8 {[%clk 0:00:35]} 20. e3 {[%clk 0:00:07]}  Re4 {[%clk 0:00:35]} 21. Nf3 {[%clk 0:00:05]}  Rc4 {[%clk 0:00:30]} 22. Qb2 {[%clk 0:00:05]}  Rdc8 {[%clk 0:00:30]} 23. Rxc4 {[%clk 0:00:05]}  dxc4 {[%clk 0:00:30]} 24. Rc1 {[%clk 0:00:05]}  Bf6 {[%clk 0:00:30]} 25. Qe2 {[%clk 0:00:05]}  c3 {[%clk 0:00:29]} 26. Rc2 {[%clk 0:00:04]}  Qc6 {[%clk 0:00:29]} 27. e4 {[%clk 0:00:04]}  Qc4 {[%clk 0:00:23]} 28. Qxc4 {[%clk 0:00:02]}  Rxc4 {[%clk 0:00:23]} 29. e5 {[%clk 0:00:03]}  Be7 {[%clk 0:00:21]} 30. Kf1 {[%clk 0:00:02]}  a5 {[%clk 0:00:21]} 31. bxa5 {[%clk 0:00:02]}  Bxa3 {[%clk 0:00:19]} 32. Ke2 {[%clk 0:00:02]}  Bb2 {[%clk 0:00:17]} 33. Kd3 {[%clk 0:00:02]}  Ra4 {[%clk 0:00:13]} 34. Nd4 {[%clk 0:00:02]}  Rxa5 {[%clk 0:00:13]} 35. f4 {[%clk 0:00:03]}  Ra1 {[%clk 0:00:06]} 36. Nb5 {[%clk 0:00:03]}  Kf8 {[%clk 0:00:05]} 37. Kc4 {[%clk 0:00:01]}  Rh1 {[%clk 0:00:02]} 38. Nxc3 {[%clk 0:00:01]}  Bxc3 {[%clk 0:00:02]} 39. Kxc3 {[%clk 0:00:02]} 1-0


[Site "https://www.chess.com"]

[Event "Titled Tuesday Blitz December 20 Late 2022"]
[White "Indjic, Aleksandar"]
[Black "Renjith, Sravan"]
[WhiteFideId "911925"]
[BlackFideId "4306783"]
[WhiteElo "2616"]
[BlackElo "2072"]
[Result "1-0"]
[Round "11"]
[TimeControl "180+1"]
[Date "2022.12.20"]
[WhiteClock "0:00:47"]
[BlackClock "0:00:08"]

1. e4 {[%clk 0:02:32]}  e5 {[%clk 0:02:56]} 2. d4 {[%clk 0:02:32]}  exd4 {[%clk 0:02:55]} 3. c3 {[%clk 0:02:32]}  d5 {[%clk 0:02:54]} 4. exd5 {[%clk 0:02:31]}  Qxd5 {[%clk 0:02:54]} 5. cxd4 {[%clk 0:02:31]}  Nf6 {[%clk 0:02:54]} 6. Nc3 {[%clk 0:02:29]}  Bb4 {[%clk 0:02:54]} 7. Nf3 {[%clk 0:02:28]}  O-O {[%clk 0:02:49]} 8. Be2 {[%clk 0:02:27]}  Ne4 {[%clk 0:02:44]} 9. Bd2 {[%clk 0:02:20]}  Bxc3 {[%clk 0:02:43]} 10. bxc3 {[%clk 0:02:20]}  Nxd2 {[%clk 0:02:43]} 11. Qxd2 {[%clk 0:02:19]}  Bf5 {[%clk 0:02:41]} 12. O-O {[%clk 0:02:17]}  Nc6 {[%clk 0:02:38]} 13. c4 {[%clk 0:02:18]}  Qd6 {[%clk 0:02:37]} 14. Rfe1 {[%clk 0:02:16]}  Rad8 {[%clk 0:02:37]} 15. d5 {[%clk 0:02:15]}  Ne5 {[%clk 0:02:35]} 16. Nxe5 {[%clk 0:02:01]}  Qxe5 {[%clk 0:02:36]} 17. Bg4 {[%clk 0:02:00]}  Qf6 {[%clk 0:02:34]} 18. Bxf5 {[%clk 0:02:00]}  Qxf5 {[%clk 0:02:35]} 19. Qb4 {[%clk 0:01:58]}  b6 {[%clk 0:02:35]} 20. Re7 {[%clk 0:01:56]}  Rd7 {[%clk 0:02:22]} 21. Rae1 {[%clk 0:01:54]}  a5 {[%clk 0:02:04]} 22. Qa3 {[%clk 0:01:52]}  h6 {[%clk 0:02:02]} 23. h3 {[%clk 0:01:46]}  Rfd8 {[%clk 0:01:52]} 24. Re8+ {[%clk 0:01:37]}  Rxe8 {[%clk 0:01:47]} 25. Rxe8+ {[%clk 0:01:38]}  Kh7 {[%clk 0:01:47]} 26. Qf8 {[%clk 0:01:31]}  Qf4 {[%clk 0:01:34]} 27. Qg8+ {[%clk 0:01:16]}  Kg6 {[%clk 0:01:32]} 28. Re3 {[%clk 0:01:12]}  Rd6 {[%clk 0:00:28]} 29. Rg3+ {[%clk 0:01:07]}  Kh5 {[%clk 0:00:29]} 30. Rg4 {[%clk 0:00:59]}  Qc1+ {[%clk 0:00:26]} 31. Kh2 {[%clk 0:00:58]}  Qc3 {[%clk 0:00:06]} 32. Qxf7+ {[%clk 0:00:54]}  g6 {[%clk 0:00:07]} 33. Rh4+ {[%clk 0:00:53]}  Kxh4 {[%clk 0:00:07]} 34. Qf4+ {[%clk 0:00:53]}  Kh5 {[%clk 0:00:08]} 35. Qg4# {[%clk 0:00:47]} 1-0


[Site "https://www.chess.com"]

[Event "Titled Tuesday Blitz December 20 Late 2022"]
[White "Jaracz, Pawel"]
[Black "Sebag, Marie"]
[WhiteFideId "1102222"]
[BlackFideId "617822"]
[WhiteElo "2460"]
[BlackElo "2440"]
[Result "0-1"]
[Round "11"]
[TimeControl "180+1"]
[Date "2022.12.20"]
[WhiteClock "0:00:07"]
[BlackClock "0:00:25"]

1. Nf3 {[%clk 0:03:00]}  d5 {[%clk 0:02:56]} 2. e3 {[%clk 0:02:59]}  c6 {[%clk 0:02:55]} 3. c4 {[%clk 0:02:59]}  Nf6 {[%clk 0:02:55]} 4. Nc3 {[%clk 0:02:59]}  e6 {[%clk 0:02:55]} 5. b3 {[%clk 0:02:59]}  Nbd7 {[%clk 0:02:54]} 6. Bb2 {[%clk 0:02:59]}  Bd6 {[%clk 0:02:54]} 7. g3 {[%clk 0:02:54]}  O-O {[%clk 0:02:53]} 8. Bg2 {[%clk 0:02:53]}  e5 {[%clk 0:02:52]} 9. O-O {[%clk 0:02:47]}  e4 {[%clk 0:02:50]} 10. Nd4 {[%clk 0:02:47]}  Ne5 {[%clk 0:02:50]} 11. cxd5 {[%clk 0:02:43]}  cxd5 {[%clk 0:02:42]} 12. Ncb5 {[%clk 0:02:41]}  Bb8 {[%clk 0:02:36]} 13. f4 {[%clk 0:02:20]}  Nd3 {[%clk 0:02:28]} 14. Ba3 {[%clk 0:02:17]}  Re8 {[%clk 0:02:28]} 15. h3 {[%clk 0:02:11]}  a6 {[%clk 0:02:25]} 16. Nc3 {[%clk 0:02:11]}  Ba7 {[%clk 0:02:25]} 17. Nce2 {[%clk 0:02:06]}  h5 {[%clk 0:02:21]} 18. Nc1 {[%clk 0:02:01]}  Bxd4 {[%clk 0:02:07]} 19. exd4 {[%clk 0:02:01]}  Qb6 {[%clk 0:01:57]} 20. Nxd3 {[%clk 0:01:56]}  exd3 {[%clk 0:01:57]} 21. Bc5 {[%clk 0:01:56]}  Qc7 {[%clk 0:01:37]} 22. Re1 {[%clk 0:01:44]}  Bf5 {[%clk 0:01:31]} 23. Re5 {[%clk 0:01:42]}  Be4 {[%clk 0:01:23]} 24. Bf1 {[%clk 0:01:32]}  g6 {[%clk 0:01:10]} 25. Rc1 {[%clk 0:01:31]}  Nd7 {[%clk 0:01:02]} 26. Rxe8+ {[%clk 0:01:15]}  Rxe8 {[%clk 0:01:01]} 27. Qe1 {[%clk 0:01:08]}  Nxc5 {[%clk 0:00:48]} 28. Rxc5 {[%clk 0:01:07]}  Qd8 {[%clk 0:00:44]} 29. Qf2 {[%clk 0:01:06]}  Qf6 {[%clk 0:00:37]} 30. Rc3 {[%clk 0:00:57]}  b5 {[%clk 0:00:36]} 31. b4 {[%clk 0:00:55]}  Qd6 {[%clk 0:00:36]} 32. a3 {[%clk 0:00:54]}  a5 {[%clk 0:00:36]} 33. Rc5 {[%clk 0:00:53]}  axb4 {[%clk 0:00:35]} 34. axb4 {[%clk 0:00:54]}  Qa6 {[%clk 0:00:34]} 35. Qe1 {[%clk 0:00:50]}  Qa4 {[%clk 0:00:32]} 36. Qb1 {[%clk 0:00:44]}  Ra8 {[%clk 0:00:29]} 37. Bxd3 {[%clk 0:00:42]}  Bxd3 {[%clk 0:00:27]} 38. Qxd3 {[%clk 0:00:42]}  Qd1+ {[%clk 0:00:26]} 39. Kf2 {[%clk 0:00:07]}  Ra1 {[%clk 0:00:25]} 0-1


[Site "https://www.chess.com"]

[Event "Titled Tuesday Blitz December 20 Late 2022"]
[White "Jimenez Almeida, Luis David"]
[Black "Bas Mas, Jose Joaquin"]
[WhiteFideId "22242244"]
[BlackFideId "22219064"]
[WhiteElo "2158"]
[BlackElo "2233"]
[Result "0-1"]
[Round "11"]
[TimeControl "180+1"]
[Date "2022.12.21"]
[WhiteClock "0:00:12"]
[BlackClock "0:00:16"]

1. e4 {[%clk 0:03:00]}  c5 {[%clk 0:02:59]} 2. f3 {[%clk 0:02:58]}  g6 {[%clk 0:02:57]} 3. Nc3 {[%clk 0:02:56]}  Bg7 {[%clk 0:02:56]} 4. Bc4 {[%clk 0:02:51]}  Nc6 {[%clk 0:02:54]} 5. d3 {[%clk 0:02:50]}  a6 {[%clk 0:02:50]} 6. Be3 {[%clk 0:02:49]}  b5 {[%clk 0:02:48]} 7. Bb3 {[%clk 0:02:41]}  Nd4 {[%clk 0:02:45]} 8. Nh3 {[%clk 0:02:33]}  e6 {[%clk 0:02:34]} 9. Ng5 {[%clk 0:02:27]}  Ne7 {[%clk 0:02:25]} 10. O-O {[%clk 0:02:23]}  O-O {[%clk 0:02:22]} 11. a4 {[%clk 0:02:14]}  b4 {[%clk 0:02:13]} 12. Ne2 {[%clk 0:02:03]}  Nxb3 {[%clk 0:02:12]} 13. cxb3 {[%clk 0:02:00]}  d6 {[%clk 0:02:11]} 14. Rb1 {[%clk 0:01:48]}  h6 {[%clk 0:02:07]} 15. Nh3 {[%clk 0:01:45]}  a5 {[%clk 0:02:04]} 16. Nef4 {[%clk 0:01:44]}  Ba6 {[%clk 0:01:58]} 17. Qd2 {[%clk 0:01:37]}  Kh7 {[%clk 0:01:55]} 18. d4 {[%clk 0:01:29]}  Bxf1 {[%clk 0:01:49]} 19. Kxf1 {[%clk 0:01:28]}  cxd4 {[%clk 0:01:45]} 20. Bxd4 {[%clk 0:01:27]}  e5 {[%clk 0:01:37]} 21. Be3 {[%clk 0:01:22]}  exf4 {[%clk 0:01:35]} 22. Bxf4 {[%clk 0:01:22]}  d5 {[%clk 0:01:34]} 23. exd5 {[%clk 0:01:20]}  Qxd5 {[%clk 0:01:31]} 24. Rc1 {[%clk 0:01:13]}  Qxd2 {[%clk 0:01:25]} 25. Bxd2 {[%clk 0:01:11]}  Bxb2 {[%clk 0:01:24]} 26. Rc7 {[%clk 0:01:08]}  Nd5 {[%clk 0:01:21]} 27. Rd7 {[%clk 0:01:07]}  Rad8 {[%clk 0:01:18]} 28. Ra7 {[%clk 0:01:03]}  Bc3 {[%clk 0:01:06]} 29. Bc1 {[%clk 0:00:53]}  Kg7 {[%clk 0:00:56]} 30. Rxa5 {[%clk 0:00:50]}  Rfe8 {[%clk 0:00:55]} 31. Nf4 {[%clk 0:00:47]}  Ne3+ {[%clk 0:00:40]} 32. Ke2 {[%clk 0:00:44]}  Nc4+ {[%clk 0:00:36]} 33. Ne6+ {[%clk 0:00:35]}  Rxe6+ {[%clk 0:00:32]} 34. Be3 {[%clk 0:00:34]}  Rxe3+ {[%clk 0:00:31]} 35. Kf2 {[%clk 0:00:32]}  Nxa5 {[%clk 0:00:30]} 36. Kxe3 {[%clk 0:00:31]}  Nxb3 {[%clk 0:00:29]} 37. g4 {[%clk 0:00:29]}  Na5 {[%clk 0:00:26]} 38. h4 {[%clk 0:00:28]}  h5 {[%clk 0:00:26]} 39. g5 {[%clk 0:00:26]}  b3 {[%clk 0:00:25]} 40. f4 {[%clk 0:00:23]}  b2 {[%clk 0:00:24]} 41. Ke4 {[%clk 0:00:21]}  b1=Q+ {[%clk 0:00:22]} 42. Kf3 {[%clk 0:00:17]}  Qd3+ {[%clk 0:00:21]} 43. Kf2 {[%clk 0:00:15]}  Re8 {[%clk 0:00:18]} 44. f5 {[%clk 0:00:16]}  Re2+ {[%clk 0:00:17]} 45. Kf1 {[%clk 0:00:15]}  Qf3+ {[%clk 0:00:16]} 46. Kg1 {[%clk 0:00:14]}  Qg3+ {[%clk 0:00:16]} 47. Kf1 {[%clk 0:00:12]}  Qg2# {[%clk 0:00:16]} 0-1


[Site "https://www.chess.com"]

[Event "Titled Tuesday Blitz December 20 Late 2022"]
[White "Kamsky, Gata"]
[Black "Lazavik, Denis"]
[WhiteFideId "2000024"]
[BlackFideId "13515110"]
[WhiteElo "2666"]
[BlackElo "2484"]
[Result "1-0"]
[Round "11"]
[TimeControl "180+1"]
[Date "2022.12.20"]
[WhiteClock "0:00:16"]
[BlackClock "0:00:05"]

1. d4 {[%clk 0:03:00]}  d5 {[%clk 0:02:59]} 2. Nf3 {[%clk 0:02:59]}  Nf6 {[%clk 0:02:59]} 3. Bf4 {[%clk 0:02:58]}  c5 {[%clk 0:02:59]} 4. e3 {[%clk 0:02:58]}  Nc6 {[%clk 0:03:00]} 5. c3 {[%clk 0:02:54]}  Qb6 {[%clk 0:02:58]} 6. Qb3 {[%clk 0:02:54]}  c4 {[%clk 0:02:58]} 7. Qc2 {[%clk 0:02:54]}  Bf5 {[%clk 0:02:58]} 8. Qc1 {[%clk 0:02:54]}  e6 {[%clk 0:02:57]} 9. Nbd2 {[%clk 0:02:55]}  h6 {[%clk 0:02:56]} 10. Be2 {[%clk 0:02:55]}  Be7 {[%clk 0:02:56]} 11. Bd1 {[%clk 0:02:55]}  O-O {[%clk 0:02:50]} 12. Bc2 {[%clk 0:02:55]}  Qd8 {[%clk 0:02:45]} 13. O-O {[%clk 0:02:49]}  b5 {[%clk 0:02:45]} 14. a3 {[%clk 0:02:47]}  a5 {[%clk 0:02:45]} 15. Ne5 {[%clk 0:02:40]}  Nxe5 {[%clk 0:02:42]} 16. Bxe5 {[%clk 0:02:40]}  Bxc2 {[%clk 0:02:41]} 17. Qxc2 {[%clk 0:02:38]}  Nd7 {[%clk 0:02:39]} 18. Bg3 {[%clk 0:02:35]}  Nb6 {[%clk 0:02:19]} 19. e4 {[%clk 0:02:25]}  Qd7 {[%clk 0:02:15]} 20. Nf3 {[%clk 0:02:21]}  b4 {[%clk 0:02:13]} 21. axb4 {[%clk 0:02:18]}  axb4 {[%clk 0:02:13]} 22. cxb4 {[%clk 0:02:15]}  Bxb4 {[%clk 0:02:09]} 23. Ne5 {[%clk 0:02:12]}  Qb7 {[%clk 0:02:05]} 24. b3 {[%clk 0:01:55]}  Rxa1 {[%clk 0:00:59]} 25. Rxa1 {[%clk 0:01:52]}  Rc8 {[%clk 0:00:58]} 26. exd5 {[%clk 0:01:39]}  exd5 {[%clk 0:00:53]} 27. bxc4 {[%clk 0:01:37]}  dxc4 {[%clk 0:00:52]} 28. Rb1 {[%clk 0:01:31]}  Nd5 {[%clk 0:00:51]} 29. h4 {[%clk 0:01:06]}  Qa6 {[%clk 0:00:21]} 30. Nxf7 {[%clk 0:00:42]}  Kxf7 {[%clk 0:00:20]} 31. Qf5+ {[%clk 0:00:41]}  Nf6 {[%clk 0:00:21]} 32. Rxb4 {[%clk 0:00:40]}  c3 {[%clk 0:00:21]} 33. Qc2 {[%clk 0:00:32]}  Qe6 {[%clk 0:00:13]} 34. Rb7+ {[%clk 0:00:28]}  Kg8 {[%clk 0:00:11]} 35. Qg6 {[%clk 0:00:20]}  Qe1+ {[%clk 0:00:04]} 36. Kh2 {[%clk 0:00:20]}  Ne8 {[%clk 0:00:05]} 37. Qf7+ {[%clk 0:00:15]}  Kh7 {[%clk 0:00:05]} 38. Qf5+ {[%clk 0:00:16]} 1-0


[Site "https://www.chess.com"]

[Event "Titled Tuesday Blitz December 20 Late 2022"]
[White "Kazakouski, Valery"]
[Black "Souleidis, Georgios"]
[WhiteFideId "13507443"]
[BlackFideId "4206827"]
[WhiteElo "2516"]
[BlackElo "2401"]
[Result "1/2-1/2"]
[Round "11"]
[TimeControl "180+1"]
[Date "2022.12.20"]
[WhiteClock "0:00:09"]
[BlackClock "0:00:05"]

1. Nf3 {[%clk 0:01:37]}  Nf6 {[%clk 0:02:58]} 2. c4 {[%clk 0:01:37]}  g6 {[%clk 0:02:59]} 3. g3 {[%clk 0:01:37]}  Bg7 {[%clk 0:03:00]} 4. Bg2 {[%clk 0:01:38]}  O-O {[%clk 0:03:00]} 5. O-O {[%clk 0:01:39]}  d6 {[%clk 0:03:01]} 6. d4 {[%clk 0:01:39]}  Nc6 {[%clk 0:03:02]} 7. Nc3 {[%clk 0:01:40]}  e5 {[%clk 0:03:02]} 8. dxe5 {[%clk 0:01:41]}  Nxe5 {[%clk 0:03:03]} 9. b3 {[%clk 0:01:41]}  Re8 {[%clk 0:02:58]} 10. Bb2 {[%clk 0:01:40]}  Nxf3+ {[%clk 0:02:51]} 11. Bxf3 {[%clk 0:01:41]}  c6 {[%clk 0:02:48]} 12. Qd2 {[%clk 0:01:40]}  Bg4 {[%clk 0:02:09]} 13. Bg2 {[%clk 0:01:35]}  Qe7 {[%clk 0:01:56]} 14. h3 {[%clk 0:01:32]}  Bf5 {[%clk 0:01:43]} 15. Rad1 {[%clk 0:01:16]}  Rad8 {[%clk 0:01:42]} 16. g4 {[%clk 0:01:09]}  Bc8 {[%clk 0:01:40]} 17. Ba3 {[%clk 0:00:52]}  Bf8 {[%clk 0:01:36]} 18. Qf4 {[%clk 0:00:48]}  Qe5 {[%clk 0:01:15]} 19. Qxe5 {[%clk 0:00:24]}  dxe5 {[%clk 0:01:16]} 20. Bc1 {[%clk 0:00:23]}  h6 {[%clk 0:01:04]} 21. Be3 {[%clk 0:00:22]}  a6 {[%clk 0:00:46]} 22. Na4 {[%clk 0:00:23]}  Kg7 {[%clk 0:00:37]} 23. Bb6 {[%clk 0:00:19]}  Rxd1 {[%clk 0:00:36]} 24. Rxd1 {[%clk 0:00:20]}  Nd7 {[%clk 0:00:27]} 25. Be3 {[%clk 0:00:20]}  f5 {[%clk 0:00:21]} 26. gxf5 {[%clk 0:00:20]}  gxf5 {[%clk 0:00:22]} 27. Kf1 {[%clk 0:00:20]}  f4 {[%clk 0:00:21]} 28. Bc1 {[%clk 0:00:18]}  Nc5 {[%clk 0:00:19]} 29. Nxc5 {[%clk 0:00:15]}  Bxc5 {[%clk 0:00:20]} 30. Bb2 {[%clk 0:00:16]}  Kf7 {[%clk 0:00:16]} 31. h4 {[%clk 0:00:15]}  Bf5 {[%clk 0:00:16]} 32. Bf3 {[%clk 0:00:13]}  Ke6 {[%clk 0:00:13]} 33. Bg2 {[%clk 0:00:10]}  Be7 {[%clk 0:00:12]} 34. h5 {[%clk 0:00:08]}  Rd8 {[%clk 0:00:12]} 35. Rxd8 {[%clk 0:00:07]}  Bxd8 {[%clk 0:00:13]} 36. Bf3 {[%clk 0:00:07]}  e4 {[%clk 0:00:11]} 37. Bg2 {[%clk 0:00:07]}  Bf6 {[%clk 0:00:11]} 38. Bc1 {[%clk 0:00:08]}  Bg5 {[%clk 0:00:11]} 39. Bb2 {[%clk 0:00:08]}  Bf6 {[%clk 0:00:11]} 40. Bc1 {[%clk 0:00:09]}  Bg5 {[%clk 0:00:10]} 41. Ba3 {[%clk 0:00:09]}  Be7 {[%clk 0:00:06]} 42. Bc1 {[%clk 0:00:09]}  Bg5 {[%clk 0:00:05]} 1/2-1/2


[Site "https://www.chess.com"]